fUSD/lending_fUSD_20250211
["ID","MTS","AMOUNT","RATE_DAILY","PERIOD"]
[352694337,1739244655235,-1933.5773746,0.00011232,2]
[352694338,1739244655244,-1815.4226254,0.00011232,2]
[352694339,1739244655255,-92.9673746,0.00011232,2]
[352694340,1739244655264,-1992.52,0.00011232,2]
[352694341,1739244655273,-907.35,0.00011232,2]
[352694342,1739244655283,-1358.1626254,0.00011232,2]
[352694343,1739244655294,-939.49639242,0.00011232,2]
[352694344,1739244655305,-184.21098218,0.00011232,2]
[352694345,1739244655315,-1797.41,0.00011232,2]
[352694346,1739244655325,-1424.11,0.00011232,2]
[352694347,1739244655334,-783.42,0.00011232,2]
[352694348,1739244655345,-500.0,0.00011232,2]
[352694349,1739244655355,-920.92,0.00011232,2]
[352694350,1739244655364,-2448.84,0.00011232,2]
[352694351,1739244655373,-1895.91,0.00011232,2]
[352694352,1739244655383,-1043.44,0.00011232,2]
[352694353,1739244655392,-1912.5,0.00011232,2]
[352694354,1739244655401,-500.0,0.00011232,2]
[352694355,1739244655411,-2797.35,0.00011232,2]
[352694356,1739244655420,-3113.13,0.00011232,2]
[352694357,1739244655429,-1585.47,0.00011232,2]
[352694358,1739244655439,-750.67,0.00011232,2]
[352694359,1739244655449,-1666.4,0.00011232,2]
[352694360,1739244655458,-1014.85,0.00011232,2]
[352694361,1739244655468,-500.0,0.00011232,2]
[352694362,1739244655478,-4521.01,0.00011232,2]
[352694363,1739244655487,-2093.01,0.00011232,2]
[352694364,1739244655497,-500.0,0.00011232,2]
[352694365,1739244655506,-500.0,0.00011232,2]
[352694366,1739244655516,-2617.93,0.00011232,2]
[352694367,1739244655525,-587.42458583,0.00011232,2]
[352694368,1739244655535,-500.0,0.00011232,2]
[352694369,1739244655544,-3129.89,0.00011232,2]
[352694370,1739244655554,-500.0,0.00011232,2]
[352694371,1739244655563,-1856.04,0.00011232,2]
[352694372,1739244655573,-1390.18,0.00011232,2]
[352694373,1739244655583,-1871.15,0.00011232,2]
[352694374,1739244655593,-500.0,0.00011232,2]
[352694375,1739244655602,-2175.28,0.00011232,2]
[352694376,1739244655612,-557.96,0.00011232,2]
[352694377,1739244655621,-500.0,0.00011232,2]
[352694378,1739244655631,-514.89916602,0.00011232,2]
[352694379,1739244655640,-1015.86,0.00011232,2]
[352694380,1739244655650,-569.89,0.00011232,2]
[352694381,1739244655660,-687.43,0.00011232,2]
[352694382,1739244655670,-633.66,0.00011232,2]
[352694383,1739244655684,-3688.94,0.00011232,2]
[352694384,1739244655693,-500.0,0.00011232,2]
[352694385,1739244655703,-2889.0,0.00011232,2]
[352694386,1739244655712,-500.0,0.00011232,2]
[352694387,1739244655723,-506.02,0.00011232,2]
[352694388,1739244655732,-500.0,0.00011232,2]
[352694389,1739244655742,-1075.52,0.00011232,2]
[352694390,1739244655752,-1799.46,0.00011232,2]
[352694391,1739244655762,-1021.7,0.00011232,2]
[352694392,1739244655772,-1402.99,0.00011232,2]
[352694393,1739244655782,-2769.23,0.00011232,2]
[352694394,1739244655791,-879.27,0.00011232,2]
[352694395,1739244655800,-2077.27,0.00011232,2]
[352694396,1739244655809,-709.09,0.00011232,2]
[352694397,1739244655819,-500.0,0.00011232,2]
[352694398,1739244655829,-500.0,0.00011232,2]
[352694399,1739244655839,-186.796,0.00011233,2]
[352694400,1739244655848,-60013.96507629,0.0001128,2]
[352694425,1739245832299,-470.77,8.343e-05,2]
[352694426,1739245832309,-150.0,8.432e-05,2]
[352694427,1739245832318,-1171.24967,8.699e-05,2]
[352694428,1739245832660,-48.35353,8.699e-05,2]
[352694429,1739245832670,-150.0,8.715e-05,2]
[352694430,1739245832679,-124.24939871,8.835e-05,2]
[352694431,1739245838162,-175.75060129,8.835e-05,2]
[352694432,1739245838173,-435.95437689,8.836e-05,2]
[352694433,1739245838216,-1335.58502591,8.836e-05,2]
[352694434,1739245838227,-1448.4158972,8.836e-05,2]
[352694435,1739245838236,-80.55519834,8.836e-05,2]
[352694436,1739245838247,-445.08188424,8.836e-05,2]
[352694437,1739245838259,-30.06431742,8.836e-05,2]
[352694438,1739245838267,-835.1313,8.836e-05,2]
[352694439,1739245838499,-384.10438258,8.836e-05,2]
[352694440,1739245838511,-1167.91008124,8.836e-05,2]
[352694441,1739245838613,-1875.52560704,8.836e-05,2]
[352694481,1739245840396,-430.88573064,8.836e-05,2]
[352694598,1739245843285,-1168.01649771,8.836e-05,2]
[352694599,1739245843296,-1072.30023744,8.836e-05,2]
[352694600,1739245843339,-10014.16876335,8.836e-05,2]
[352694601,1739245843348,-500.0,9.178e-05,2]
[352694602,1739245843357,-150.0,9.178e-05,2]
[352694603,1739245843367,-420.0,9.718e-05,2]
[352694604,1739245843376,-648.02,9.912e-05,2]
[352694605,1739245843385,-37.24569927,0.00010002,2]
[352694606,1739245843397,-1500.09430073,0.00010002,2]
[352694607,1739245843406,-513.82,0.00010047,2]
[352694608,1739245843415,-247.66,0.00010137,2]
[352694609,1739245843426,-1000.0,0.00010148,2]
[352694610,1739245843436,-165.6,0.0001032,2]
[352694611,1739245843445,-330.89884493,0.0001032,2]
[352694612,1739245843496,-19565.67607299,0.0001032,2]
[352694616,1739245846267,-837.65291367,0.0001032,2]
[352694617,1739245846374,-1146.77216841,0.0001032,2]
[352694618,1739245846383,-503.78,0.00010405,2]
[352694619,1739245846393,-608.78,0.00010405,2]
[352694620,1739245846402,-470.77,0.00010607,2]
[352694621,1739245846412,-587.0,0.0001069,2]
[352694622,1739245846421,-5538.0,0.000107,5]
[352694623,1739245846432,-300.0,0.000108,3]
[352694624,1739245846441,-6.58052893,0.0001083,2]
[352694625,1739245846452,-193.41947107,0.0001083,2]
[352694626,1739245846461,-600.0,0.000109,3]
[352694627,1739245846470,-150.0,0.00010957,2]
[352694628,1739245846479,-365.61389952,0.00010958,2]
[352694629,1739245846551,-134.38610048,0.00010958,2]
[352694630,1739245846560,-500.0,0.00010958,2]
[352694631,1739245846570,-449.33708681,0.00010958,2]
[352694632,1739245846579,-500.0,0.00010958,2]
[352694633,1739245846588,-367.91442292,0.00010958,2]
[352694634,1739245846598,-562.87,0.00010958,2]
[352694635,1739245846607,-507.05174461,0.00010958,2]
[352694636,1739245846616,-500.0,0.00010958,2]
[352694637,1739245846626,-500.0,0.00010958,2]
[352694638,1739245846635,-500.0,0.00010958,2]
[352694639,1739245846645,-500.0,0.00010958,2]
[352694640,1739245846654,-155.66900038,0.00010958,2]
[352694641,1739245846664,-500.0,0.00010958,2]
[352694642,1739245846673,-500.0,0.00010958,2]
[352694643,1739245846683,-500.0,0.00010958,2]
[352694644,1739245846692,-500.0,0.00010958,2]
[352694645,1739245846702,-500.0,0.00010958,2]
[352694646,1739245846712,-578.02,0.00010958,2]
[352694647,1739245846722,-550.77,0.00010958,2]
[352694648,1739245846732,-500.0,0.00010958,2]
[352694649,1739245846742,-500.0,0.00010958,2]
[352694650,1739245846752,-500.0,0.00010958,2]
[352694651,1739245846763,-500.0,0.00010958,2]
[352694652,1739245846773,-500.0,0.00010958,2]
[352694653,1739245846783,-500.0,0.00010958,2]
[352694654,1739245846794,-500.0,0.00010958,2]
[352694655,1739245846804,-500.0,0.00010958,2]
[352694656,1739245846814,-500.0,0.00010958,2]
[352694657,1739245846824,-500.0,0.00010958,2]
[352694658,1739245846834,-500.0,0.00010958,2]
[352694659,1739245846843,-619.82158455,0.00010958,2]
[352694660,1739245846853,-500.0,0.00010958,2]
[352694661,1739245846863,-500.0,0.00010958,2]
[352694662,1739245846872,-500.0,0.00010958,2]
[352694663,1739245846882,-500.0,0.00010958,2]
[352694664,1739245846891,-199.11,0.00010958,2]
[352694665,1739245846901,-344.79255506,0.00010958,2]
[352694666,1739245846911,-500.0,0.00010958,2]
[352694667,1739245846920,-500.0,0.00010958,2]
[352694668,1739245846930,-500.0,0.00010958,2]
[352694669,1739245846939,-500.0,0.00010958,2]
[352694670,1739245846949,-500.0,0.00010958,2]
[352694671,1739245846959,-500.0,0.00010958,2]
[352694672,1739245846969,-500.0,0.00010958,2]
[352694673,1739245846979,-551.25,0.00010958,2]
[352694674,1739245846988,-500.0,0.00010958,2]
[352694675,1739245846998,-500.0,0.00010958,2]
[352694676,1739245847007,-614.2,0.00010958,2]
[352694677,1739245847016,-500.0,0.00010958,2]
[352694678,1739245847026,-500.0,0.00010958,2]
[352694679,1739245847036,-500.0,0.00010958,2]
[352694680,1739245847050,-198.94384789,0.00010958,2]
[352694681,1739245847059,-832.04,0.00010958,2]
[352694682,1739245847069,-628.46,0.00010958,2]
[352694683,1739245847079,-500.0,0.00010958,2]
[352694684,1739245847089,-500.0,0.00010958,2]
[352694685,1739245847099,-500.0,0.00010958,2]
[352694686,1739245847108,-500.0,0.00010958,2]
[352694687,1739245847116,-500.0,0.00010958,2]
[352694688,1739245847127,-500.0,0.00010958,2]
[352694689,1739245847137,-1230.14,0.00010958,2]
[352694690,1739245847146,-818.78,0.00010958,2]
[352694691,1739245847156,-685.41,0.00010958,2]
[352694692,1739245847166,-516.5,0.00010958,2]
[352694693,1739245847176,-500.0,0.00010958,2]
[352694694,1739245847185,-500.0,0.00010958,2]
[352694695,1739245847195,-851.32,0.00010958,2]
[352694696,1739245847205,-500.0,0.00010958,2]
[352694697,1739245847215,-500.0,0.00010958,2]
[352694698,1739245847225,-500.0,0.00010958,2]
[352694699,1739245847234,-600.18,0.00010958,2]
[352694700,1739245847244,-500.0,0.00010958,2]
[352694701,1739245847254,-676.36,0.00010958,2]
[352694702,1739245847264,-757.3,0.00010958,2]
[352694703,1739245847273,-601.78439123,0.00010958,2]
[352694704,1739245847283,-500.0,0.00010958,2]
[352694705,1739245847294,-500.0,0.00010958,2]
[352694706,1739245847303,-500.0,0.00010958,2]
[352694707,1739245847313,-500.0,0.00010958,2]
[352694708,1739245847323,-500.0,0.00010958,2]
[352694709,1739245847333,-500.0,0.00010958,2]
[352694710,1739245847342,-500.0,0.00010958,2]
[352694711,1739245847351,-1150.43,0.00010958,2]
[352694712,1739245847361,-500.0,0.00010958,2]
[352694713,1739245847370,-500.0,0.00010958,2]
[352694714,1739245847380,-288.03968959,0.00010958,2]
[352694715,1739245847389,-500.0,0.00010958,2]
[352694716,1739245847400,-500.0,0.00010958,2]
[352694717,1739245847410,-649.8711714,0.00010958,2]
[352694718,1739245847420,-500.0,0.00010958,2]
[352694719,1739245847431,-500.0,0.00010958,2]
[352694720,1739245847441,-500.0,0.00010958,2]
[352694721,1739245847450,-500.0,0.00010958,2]
[352694722,1739245847460,-1083.61,0.00010958,2]
[352694723,1739245847470,-500.0,0.00010958,2]
[352694724,1739245847479,-500.0,0.00010958,2]
[352694725,1739245847488,-539.7,0.00010958,2]
[352694726,1739245847497,-500.0,0.00010958,2]
[352694727,1739245847506,-500.0,0.00010958,2]
[352694728,1739245847516,-1137.39,0.00010958,2]
[352694729,1739245847527,-549.33,0.00010958,2]
[352694730,1739245847536,-500.0,0.00010958,2]
[352694731,1739245847546,-596.50956778,0.00010958,2]
[352694732,1739245847555,-500.0,0.00010958,2]
[352694733,1739245847565,-727.96,0.00010958,2]
[352694734,1739245847575,-670.01,0.00010958,2]
[352694735,1739245847584,-500.0,0.00010958,2]
[352694736,1739245847593,-500.0,0.00010958,2]
[352694737,1739245847603,-1143.9,0.00010958,2]
[352694738,1739245847614,-772.08,0.00010958,2]
[352694739,1739245847624,-500.0,0.00010958,2]
[352694740,1739245847633,-500.0,0.00010958,2]
[352694741,1739245847642,-500.0,0.00010958,2]
[352694742,1739245847652,-509.32,0.00010958,2]
[352694743,1739245847662,-500.0,0.00010958,2]
[352694744,1739245847671,-500.0,0.00010958,2]
[352694745,1739245847681,-500.0,0.00010958,2]
[352694746,1739245847691,-1020.6,0.00010958,2]
[352694747,1739245847702,-500.0,0.00010958,2]
[352694748,1739245847712,-500.0,0.00010958,2]
[352694749,1739245847723,-500.0,0.00010958,2]
[352694750,1739245847732,-500.0,0.00010958,2]
[352694751,1739245847742,-576.40982251,0.00010958,2]
[352694752,1739245847752,-500.0,0.00010958,2]
[352694753,1739245847762,-500.0,0.00010958,2]
[352694754,1739245847772,-500.0,0.00010958,2]
[352694755,1739245847781,-580.48,0.00010958,2]
[352694756,1739245847791,-500.0,0.00010958,2]
[352694757,1739245847801,-500.0,0.00010958,2]
[352694758,1739245847810,-500.0,0.00010958,2]
[352694759,1739245847819,-500.0,0.00010958,2]
[352694760,1739245848071,-500.0,0.00010958,2]
[352694761,1739245848083,-576.49,0.00010958,2]
[352694762,1739245848094,-500.0,0.00010958,2]
[352694763,1739245848103,-500.0,0.00010958,2]
[352694764,1739245848114,-500.0,0.00010958,2]
[352694765,1739245848125,-500.0,0.00010958,2]
[352694766,1739245848136,-500.0,0.00010958,2]
[352694767,1739245848148,-603.83,0.00010958,2]
[352694768,1739245848159,-500.0,0.00010958,2]
[352694769,1739245848170,-500.0,0.00010958,2]
[352694770,1739245848182,-500.0,0.00010958,2]
[352694771,1739245848193,-500.0,0.00010958,2]
[352694772,1739245848204,-500.0,0.00010958,2]
[352694773,1739245848215,-792.44,0.00010958,2]
[352694774,1739245848226,-635.94,0.00010958,2]
[352694775,1739245848237,-500.0,0.00010958,2]
[352694776,1739245848249,-500.0,0.00010958,2]
[352694777,1739245848259,-500.0,0.00010958,2]
[352694778,1739245848270,-500.0,0.00010958,2]
[352694779,1739245848281,-500.0,0.00010958,2]
[352694780,1739245848291,-500.0,0.00010958,2]
[352694781,1739245848300,-500.0,0.00010958,2]
[352694782,1739245848312,-500.0,0.00010958,2]
[352694783,1739245848323,-500.0,0.00010958,2]
[352694784,1739245848334,-500.0,0.00010958,2]
[352694785,1739245848344,-500.0,0.00010958,2]
[352694786,1739245848355,-500.0,0.00010958,2]
[352694787,1739245848365,-500.0,0.00010958,2]
[352694788,1739245848375,-504.38,0.00010958,2]
[352694789,1739245848387,-500.0,0.00010958,2]
[352694790,1739245848398,-1142.72,0.00010958,2]
[352694791,1739245848408,-500.0,0.00010958,2]
[352694792,1739245848418,-500.0,0.00010958,2]
[352694793,1739245848430,-500.0,0.00010958,2]
[352694794,1739245848441,-1569.9,0.00010958,2]
[352694795,1739245848451,-500.0,0.00010958,2]
[352694796,1739245848461,-505.88035807,0.00010958,2]
[352694797,1739245848471,-500.0,0.00010958,2]
[352694798,1739245848482,-322.59632234,0.00010958,2]
[352694799,1739245848493,-1748.1,0.00010958,2]
[352694800,1739245848504,-500.0,0.00010958,2]
[352694801,1739245848514,-500.0,0.00010958,2]
[352694802,1739245848524,-500.0,0.00010958,2]
[352694803,1739245848534,-500.0,0.00010958,2]
[352694804,1739245848545,-500.0,0.00010958,2]
[352694805,1739245848555,-800.87,0.00010958,2]
[352694806,1739245848567,-1000.0,0.00010958,2]
[352694807,1739245848577,-500.0,0.00010958,2]
[352694808,1739245848587,-1180.69,0.00010958,2]
[352694809,1739245848598,-500.0,0.00010958,2]
[352694810,1739245848609,-500.0,0.00010958,2]
[352694811,1739245848619,-500.0,0.00010958,2]
[352694812,1739245848629,-500.0,0.00010958,2]
[352694813,1739245848639,-585.89,0.00010958,2]
[352694814,1739245848649,-500.0,0.00010958,2]
[352694815,1739245848659,-500.0,0.00010958,2]
[352694816,1739245848669,-941.42,0.00010958,2]
[352694817,1739245848680,-500.0,0.00010958,2]
[352694818,1739245848690,-1705.11,0.00010958,2]
[352694819,1739245848700,-500.0,0.00010958,2]
[352694820,1739245848710,-500.0,0.00010958,2]
[352694821,1739245848720,-938.36,0.00010958,2]
[352694822,1739245848732,-500.0,0.00010958,2]
[352694823,1739245848741,-500.0,0.00010958,2]
[352694824,1739245848751,-500.0,0.00010958,2]
[352694825,1739245848762,-500.0,0.00010958,2]
[352694826,1739245848771,-2068.06,0.00010958,2]
[352694827,1739245848781,-500.0,0.00010958,2]
[352694828,1739245848791,-500.0,0.00010958,2]
[352694829,1739245848801,-500.0,0.00010958,2]
[352694830,1739245848811,-500.0,0.00010958,2]
[352694831,1739245848820,-500.0,0.00010958,2]
[352694832,1739245848831,-500.0,0.00010958,2]
[352694833,1739245848841,-500.0,0.00010958,2]
[352694834,1739245848851,-500.0,0.00010958,2]
[352694835,1739245848860,-166.19700213,0.00010958,2]
[352694836,1739245848928,-347.25869367,0.00010958,2]
[352694837,1739245848939,-500.0,0.00010958,2]
[352694838,1739245848950,-500.0,0.00010958,2]
[352694839,1739245848960,-500.0,0.00010958,2]
[352694840,1739245848970,-500.0,0.00010958,2]
[352694841,1739245848979,-500.0,0.00010958,2]
[352694842,1739245848989,-500.0,0.00010958,2]
[352694843,1739245849000,-500.0,0.00010958,2]
[352694844,1739245849011,-588.8,0.00010958,2]
[352694845,1739245849021,-857.84928611,0.00010958,2]
[352694846,1739245849035,-45.52071389,0.00010958,2]
[352694847,1739245849049,-500.0,0.00010958,2]
[352694848,1739245849059,-500.0,0.00010958,2]
[352694849,1739245849070,-500.0,0.00010958,2]
[352694850,1739245849081,-500.0,0.00010958,2]
[352694851,1739245849092,-500.0,0.00010958,2]
[352694852,1739245849102,-500.0,0.00010958,2]
[352694853,1739245849113,-529.88,0.00010958,2]
[352694854,1739245849125,-624.59928611,0.00010958,2]
[352694855,1739245849139,-193.14071389,0.00010958,2]
[352694856,1739245849149,-194.75673075,0.00010958,2]
[352694857,1739245849162,-305.24326925,0.00010958,2]
[352694858,1739245849173,-8.07038542,0.00010993,2]
[352694859,1739245849187,-218.25005527,0.00010993,2]
[352694860,1739245849197,-150.0,0.00011,2]
[352694861,1739245849208,-113.71501489,0.00011092,2]
[352694862,1739245849221,-386.28498511,0.00011092,2]
[352694863,1739245849232,-500.0,0.00011092,2]
[352694864,1739245849242,-144.71501514,0.00011092,2]
[352694865,1739245849255,-355.28498486,0.00011092,2]
[352694866,1739245849267,-519.48,0.00011092,2]
[352694867,1739245849277,-500.0,0.00011092,2]
[352694868,1739245849287,-500.0,0.00011092,2]
[352694869,1739245849298,-469.24376669,0.00011092,2]
[352694870,1739245849309,-500.0,0.00011092,2]
[352694871,1739245849320,-500.0,0.00011092,2]
[352694872,1739245849331,-500.0,0.00011092,2]
[352694873,1739245849341,-500.0,0.00011092,2]
[352694874,1739245849352,-356.57882565,0.00011092,2]
[352694875,1739245849362,-500.0,0.00011092,2]
[352694876,1739245849373,-500.0,0.00011092,2]
[352694877,1739245849383,-503.22465283,0.00011092,2]
[352694878,1739245849392,-497.71869996,0.00011092,2]
[352694879,1739245849402,-500.0,0.00011092,2]
[352694880,1739245849412,-506.17968183,0.00011092,2]
[352694881,1739245849421,-500.0,0.00011092,2]
[352694882,1739245849432,-505.71573866,0.00011092,2]
[352694883,1739245849442,-500.0,0.00011092,2]
[352694884,1739245849452,-500.0,0.00011092,2]
[352694885,1739245849462,-500.0,0.00011092,2]
[352694886,1739245849472,-500.0,0.00011092,2]
[352694887,1739245849482,-500.0,0.00011092,2]
[352694888,1739245849492,-502.89758734,0.00011092,2]
[352694889,1739245849502,-500.0,0.00011092,2]
[352694890,1739245849512,-513.29115708,0.00011092,2]
[352694891,1739245849522,-500.0,0.00011092,2]
[352694892,1739245849532,-251.78416326,0.00011092,2]
[352694893,1739245849542,-500.0,0.00011092,2]
[352694894,1739245849552,-500.0,0.00011092,2]
[352694895,1739245849562,-500.0,0.00011092,2]
[352694896,1739245849572,-500.0,0.00011092,2]
[352694897,1739245849582,-500.0,0.00011092,2]
[352694898,1739245849592,-500.0,0.00011092,2]
[352694899,1739245849602,-500.0,0.00011092,2]
[352694900,1739245849613,-500.0,0.00011092,2]
[352694901,1739245849623,-500.0,0.00011092,2]
[352694902,1739245849634,-500.0,0.00011092,2]
[352694903,1739245849646,-500.0,0.00011092,2]
[352694904,1739245849656,-500.0,0.00011092,2]
[352694905,1739245849667,-500.0,0.00011092,2]
[352694906,1739245849677,-500.0,0.00011092,2]
[352694907,1739245849687,-500.0,0.00011092,2]
[352694908,1739245849697,-500.0,0.00011092,2]
[352694909,1739245849706,-1547.52,0.00011092,2]
[352694910,1739245849715,-500.0,0.00011092,2]
[352694911,1739245849724,-737.78,0.00011092,2]
[352694912,1739245849732,-500.0,0.00011092,2]
[352694913,1739245849742,-500.0,0.00011092,2]
[352694914,1739245849751,-1012.71,0.00011092,2]
[352694915,1739245849761,-2786.06,0.00011092,2]
[352694916,1739245849770,-506.50061874,0.00011092,2]
[352694917,1739245849779,-1130.38,0.00011092,2]
[352694918,1739245849789,-500.0,0.00011092,2]
[352694919,1739245849798,-500.0,0.00011092,2]
[352694920,1739245849808,-500.0,0.00011092,2]
[352694921,1739245849817,-2222.53,0.00011092,2]
[352694922,1739245849827,-500.0,0.00011092,2]
[352694923,1739245849837,-1984.62,0.00011092,2]
[352694924,1739245849846,-500.0,0.00011092,2]
[352694925,1739245849856,-500.0,0.00011092,2]
[352694926,1739245849865,-2024.53,0.00011092,2]
[352694927,1739245849875,-2056.09,0.00011092,2]
[352694928,1739245849885,-500.0,0.00011092,2]
[352694929,1739245849894,-500.0,0.00011092,2]
[352694930,1739245849905,-500.0,0.00011092,2]
[352694931,1739245849914,-866.9,0.00011092,2]
[352694932,1739245849923,-1674.25,0.00011092,2]
[352694933,1739245849934,-500.0,0.00011092,2]
[352694934,1739245849943,-497.50244264,0.00011092,2]
[352694935,1739245849953,-1895.34,0.00011092,2]
[352694936,1739245849963,-3023.66,0.00011092,2]
[352694937,1739245849973,-500.0,0.00011092,2]
[352694938,1739245849982,-500.0,0.00011092,2]
[352694939,1739245849992,-500.0,0.00011092,2]
[352694940,1739245850003,-571.34,0.00011092,2]
[352694941,1739245850013,-500.0,0.00011092,2]
[352694942,1739245850023,-3081.09,0.00011092,2]
[352694943,1739245850032,-509.80944608,0.00011092,2]
[352694944,1739245850044,-2105.16,0.00011092,2]
[352694945,1739245850053,-500.0,0.00011092,2]
[352694946,1739245850063,-1436.97,0.00011092,2]
[352694947,1739245850073,-500.0,0.00011092,2]
[352694948,1739245850083,-508.24472506,0.00011092,2]
[352694949,1739245850092,-1437.61,0.00011092,2]
[352694950,1739245850102,-1495.22,0.00011092,2]
[352694951,1739245850111,-1018.75,0.00011092,2]
[352694952,1739245850121,-638.46018699,0.00011092,2]
[352694953,1739245850131,-3691.01,0.00011092,2]
[352694954,1739245850140,-1081.48,0.00011092,2]
[352694955,1739245850151,-500.0,0.00011092,2]
[352694956,1739245850161,-641.29,0.00011092,2]
[352694957,1739245850171,-1099.15,0.00011092,2]
[352694958,1739245850182,-1598.87,0.00011092,2]
[352694959,1739245850192,-249.74831268,0.00011092,2]
[352694960,1739245850201,-500.0,0.00011092,2]
[352694961,1739245850211,-500.0,0.00011092,2]
[352694962,1739245850221,-523.24458222,0.00011092,2]
[352694963,1739245850230,-505.85708612,0.00011093,2]
[352694964,1739245850239,-500.0,0.00011093,2]
[352694965,1739245850248,-832.3,0.00011093,2]
[352694966,1739245850258,-500.0,0.00011093,2]
[352694967,1739245850267,-347.44121662,0.00011093,2]
[352694968,1739245850276,-859.17,0.00011093,2]
[352694969,1739245850285,-936.583017,0.00011093,2]
[352694970,1739245850294,-500.0,0.00011093,2]
[352694971,1739245850304,-500.0,0.00011093,2]
[352694973,1739245850314,-893.96,0.00011093,2]
[352694974,1739245850323,-858.765114,0.00011093,2]
[352694975,1739245850333,-500.0,0.00011093,2]
[352694976,1739245850342,-500.0,0.00011093,2]
[352694977,1739245850352,-500.0,0.00011093,2]
[352694978,1739245850362,-889.03,0.00011093,2]
[352694979,1739245850372,-500.0,0.00011093,2]
[352694980,1739245850382,-1075.3,0.00011093,2]
[352694981,1739245850391,-500.0,0.00011093,2]
[352694982,1739245850401,-745.74,0.00011093,2]
[352694983,1739245850411,-159.752697,0.00011093,2]
[352694984,1739245850421,-899.53,0.00011093,2]
[352694985,1739245850431,-680.2,0.00011093,2]
[352694986,1739245850440,-500.0,0.00011093,2]
[352694987,1739245850450,-1981.69,0.00011093,2]
[352694988,1739245850460,-2047.72,0.00011093,2]
[352694989,1739245850469,-500.0,0.00011093,2]
[352694990,1739245850478,-1050.54,0.00011093,2]
[352694991,1739245850488,-289.812616,0.00011093,2]
[352694992,1739245850498,-2187.74,0.00011093,2]
[352694993,1739245850507,-1247.53,0.00011093,2]
[352694994,1739245850517,-1186.56,0.00011093,2]
[352694995,1739245850527,-701.07,0.00011093,2]
[352694996,1739245850536,-500.0,0.00011093,2]
[352694997,1739245850546,-1584.51,0.00011093,2]
[352694998,1739245850555,-1058.66,0.00011093,2]
[352694999,1739245850565,-595.24,0.00011093,2]
[352695000,1739245850574,-1747.52,0.00011093,2]
[352695001,1739245850584,-500.0,0.00011093,2]
[352695002,1739245850593,-965.26,0.00011093,2]
[352695003,1739245850603,-765.79,0.00011093,2]
[352695004,1739245850612,-1768.18,0.00011093,2]
[352695005,1739245850622,-2054.37,0.00011093,2]
[352695006,1739245850631,-1666.53,0.00011093,2]
[352695007,1739245850641,-500.0,0.00011093,2]
[352695008,1739245850650,-500.0,0.00011093,2]
[352695009,1739245850659,-500.0,0.00011093,2]
[352695010,1739245850668,-1324.27,0.00011093,2]
[352695011,1739245850677,-1725.82,0.00011093,2]
[352695012,1739245850687,-2129.58,0.00011093,2]
[352695013,1739245850696,-825.8,0.00011093,2]
[352695014,1739245850705,-2509.83,0.00011093,2]
[352695015,1739245850714,-1621.94,0.00011093,2]
[352695016,1739245850723,-500.0,0.00011093,2]
[352695017,1739245850732,-1552.42,0.00011093,2]
[352695018,1739245850741,-162.02028029,0.00011093,2]
[352695019,1739245850750,-1921.42,0.00011093,2]